bitfinex/quotes_SOLUSD_20250310
["timestamp","ask_amount","ask_price","bid_price","bid_amount"]
[1741633443333,76.32052121,116.24,116.16,76.32052121]
[1741633443561,76.32052121,116.22,116.16,136.32052121]
[1741633443765,76.32052121,116.18,116.15,0.03]
[1741633443939,76.32052121,116.17,116.15,0.03]
[1741633444143,1.6148841,116.18,116.15,0.03]
[1741633444356,1.6148841,116.2,116.17,76.32052121]
[1741633444559,20.0,116.18,116.15,0.03]
[1741633444730,1.6148841,116.2,116.15,76.35052121]
[1741633445161,77.93540531,116.2,116.15,76.35052121]
[1741633445365,1.6148841,116.2,116.15,76.35052121]
[1741633445673,1.61419141,116.2,116.15,76.35052121]
[1741633445833,227.8,116.21,116.18,76.32052121]
[1741633446035,227.8,116.21,116.2,76.32052121]
[1741633446464,227.8,116.21,116.18,60.0]
[1741633446652,227.8,116.21,116.19,76.32052121]
[1741633446837,227.8,116.21,116.19,60.0]
[1741633447042,227.8,116.21,116.17,76.32052121]
[1741633447337,227.8,116.21,116.17,60.0]
[1741633448044,227.8,116.21,116.16,60.03]
[1741633448340,227.8,116.21,116.2,76.32052121]
[1741633448559,227.8,116.21,116.2,136.32052121]
[1741633448771,227.8,116.21,116.19,76.32052121]
[1741633448961,227.8,116.21,116.2,76.32052121]
[1741633449146,227.8,116.21,116.16,136.35052121]
[1741633449349,227.8,116.21,116.17,18.933972]
[1741633449566,0.063,116.31,116.19,6.148]
[1741633449871,227.88,116.26,116.2,18.64964886]
[1741633450045,227.88,116.26,116.2,78.933972]
[1741633450245,227.88,116.26,116.19,66.148]
[1741633450458,76.32052121,116.24,116.16,60.03]
[1741633450777,20.0,116.2,116.18,76.32052121]
[1741633451070,77.93433563,116.23,116.17,76.32052121]
[1741633451071,20.0,116.22,116.17,76.32052121]
[1741633451274,77.93445167,116.21,116.16,0.03]
[1741633451581,76.32052121,116.19,116.16,0.03]
[1741633451869,20.0,116.23,116.16,60.03]
[1741633452170,227.88,116.26,116.16,60.03]
[1741633452869,227.88,116.26,116.25,76.32052121]
[1741633453078,227.88,116.26,116.23,76.32052121]
[1741633453238,76.32052121,116.24,116.18,76.32052121]
[1741633453569,227.88,116.26,116.16,60.03]
[1741633453570,21.61391304,116.23,116.16,60.03]
[1741633453955,20.0,116.18,116.16,0.03]
[1741633454164,305.87516047,116.17,116.16,0.03]
[1741633454480,18.933972,116.16,116.15,0.03]
[1741633454773,43.13030541,116.16,116.04,76.35052121]
[1741633454941,43.13030541,116.16,116.04,0.03]
[1741633454942,95.25449321,116.1,116.04,0.03]
[1741633455141,96.87059534,116.1,116.04,0.03]
[1741633455768,100.44964886,116.09,116.04,0.03]
[1741633455962,77.93688063,116.08,116.04,0.03]
[1741633456168,1.61635942,116.08,116.04,76.35052121]
[1741633456358,1.61635942,116.08,116.04,0.03]
[1741633456788,0.28432314,116.06,116.04,0.03]
[1741633456988,1.61656937,116.05,116.04,0.03]
[1741633457195,20.40830446,116.09,116.04,0.03]
[1741633457365,76.32052121,116.05,116.04,0.03]
[1741633457565,1.61647097,116.07,116.04,76.35052121]
[1741633457867,76.32052121,116.05,116.04,0.03]
[1741633458207,1.61647214,116.08,116.04,76.35052121]
[1741633458499,78.32052121,116.16,116.04,76.35052121]
[1741633458500,1.61590074,116.13,116.04,60.03]
[1741633458795,1.61590074,116.13,116.04,0.03]
[1741633458996,76.32052121,116.12,116.04,0.03]
[1741633459184,77.936198,116.11,116.06,76.32052121]
[1741633459374,1.61567679,116.11,116.05,76.32052121]
[1741633459575,76.32052121,116.1,116.04,76.35052121]
[1741633459771,76.32052121,116.08,116.04,0.03]
[1741633460079,1.61612847,116.1,116.06,76.32052121]
[1741633460484,1.59612847,116.1,116.07,76.32052121]
[1741633460794,1.60320265,116.13,116.08,76.32052121]
[1741633460968,77.92372386,116.13,116.07,76.32052121]
[1741633461168,76.32052121,116.1,116.04,76.35052121]
[1741633461393,20.0,116.05,116.04,0.03]
[1741633461574,1.60320265,116.05,116.04,0.03]
[1741633462172,96.85769586,116.05,116.04,0.03]
[1741633462487,77.92372386,116.05,116.04,0.03]
[1741633462687,1.60320265,116.05,116.04,0.03]
[1741633463091,77.92372386,116.05,116.04,0.03]
[1741633463598,1.60320265,116.05,116.04,0.03]
[1741633463971,77.92372386,116.05,116.04,0.03]
[1741633464379,1.60320265,116.05,116.04,0.03]
[1741633464683,1.60320265,116.08,116.04,76.35052121]
[1741633464897,228.22,116.07,116.04,0.03]
[1741633465106,77.92372386,116.06,116.04,0.03]
[1741633465403,76.32052121,116.05,116.04,0.03]
[1741633465591,95.25449321,116.05,116.04,0.03]
[1741633465800,96.85769586,116.05,116.04,0.03]
[1741633465975,77.92372386,116.05,116.04,0.03]
[1741633466176,21.60320265,116.05,116.04,0.03]
[1741633466681,1.60320265,116.06,116.04,0.03]
[1741633466878,20.0,116.05,116.04,0.03]
[1741633467092,96.60484435,116.05,116.04,0.03]
[1741633467279,20.0,116.05,116.04,0.03]
[1741633467474,1.60320265,116.06,116.04,0.03]
[1741633467696,1.60320265,116.08,116.04,0.03]
[1741633467904,20.0,116.05,116.04,0.03]
[1741633468073,21.60320265,116.05,116.04,0.03]
[1741633468281,40.53717465,116.05,116.04,0.03]
[1741633468608,116.85769586,116.05,116.04,0.03]
[1741633468807,116.57337272,116.05,116.04,0.03]
[1741633469100,1.60320265,116.05,116.04,0.03]
[1741633469299,1.60320265,116.08,116.04,0.03]
[1741633469513,1.60320265,116.08,116.04,76.35052121]
[1741633470008,76.32052121,116.1,116.05,76.32052121]
[1741633470303,1.60320265,116.1,116.07,76.32052121]
[1741633470511,77.92372386,116.15,116.09,76.32052121]
[1741633470707,1.60320265,116.15,116.1,76.32052121]
[1741633471008,76.32052121,116.13,116.04,136.35052121]
[1741633471213,0.063,116.09,116.04,0.03]
[1741633471384,0.063,116.09,116.07,76.32052121]
[1741633471586,0.063,116.09,116.08,76.32052121]
[1741633471791,0.063,116.09,116.08,136.32052121]
[1741633471989,1.60320265,116.18,116.09,0.28432314]
[1741633472190,81.8,116.22,116.09,0.28432314]
[1741633472191,1.60320265,116.21,116.16,76.32052121]
[1741633472393,76.32052121,116.2,116.11,3.098]
[1741633472595,20.0,116.15,116.08,76.32052121]
[1741633472817,20.0,116.15,116.06,60.0]
[1741633472985,1.60320265,116.14,116.06,60.0]
[1741633473187,1.60320265,116.13,116.06,60.0]
[1741633473489,94.97017007,116.14,116.08,76.32052121]
[1741633473681,18.64964886,116.12,116.07,76.32052121]
[1741633473879,94.97017007,116.1,116.04,62.8788]
[1741633474117,18.64964886,116.1,116.07,76.32052121]
[1741633474314,77.92372386,116.11,116.05,76.32052121]
[1741633474609,21.60320265,116.13,116.08,76.32052121]
[1741633474810,1.60320265,116.15,116.1,76.32052121]
[1741633474982,228.24,116.12,116.1,76.32052121]
[1741633475183,228.24,116.12,116.11,76.32052121]
[1741633475382,228.24,116.12,116.11,84.93302121]
[1741633475679,228.24,116.12,116.11,136.32052121]
[1741633475899,228.24,116.12,116.07,60.0]
[1741633476103,228.24,116.12,116.11,76.32052121]
[1741633476321,228.24,116.12,116.1,76.32052121]
[1741633476793,228.24,116.12,116.11,76.32052121]
[1741633476994,228.24,116.12,116.11,136.32052121]
[1741633477485,228.2,116.14,116.12,8.6117]
[1741633477687,228.2,116.15,116.13,76.32052121]
[1741633478003,228.2,116.15,116.14,76.32052121]
[1741633479514,228.2,116.15,116.09,21.5342]
[1741633479515,304.52052121,116.15,116.09,76.32052121]
[1741633479713,77.92372386,116.14,116.09,76.32052121]
[1741633480016,77.92372386,116.14,116.08,6.3704]
[1741633480017,1.60320265,116.14,116.1,76.32052121]
[1741633480195,76.32052121,116.13,116.07,76.32052121]
[1741633480508,1.60320265,116.14,116.1,76.32052121]
[1741633480718,96.57337272,116.14,116.07,60.0]
[1741633480885,1.60320265,116.14,116.07,60.0]
[1741633481086,1.60320265,116.14,116.1,76.32052121]
[1741633481288,228.2,116.15,116.13,76.32052121]
[1741633481590,228.2,116.15,116.04,71.4964]
[1741633481591,1.60320265,116.14,116.04,71.4964]
[1741633481787,228.2,116.15,116.1,76.32052121]
[1741633481984,228.2,116.15,116.05,0.28432314]
[1741633482190,228.2,116.15,116.11,76.32052121]
[1741633482421,228.2,116.15,116.12,76.32052121]
[1741633482587,228.2,116.15,116.11,76.32052121]
[1741633482918,228.263,116.15,116.11,76.32052121]
[1741633483802,228.263,116.15,116.12,76.32052121]
[1741633484003,228.263,116.15,116.11,76.32052121]
[1741633484312,228.263,116.15,116.11,60.0]
[1741633485008,228.263,116.15,116.14,76.32052121]
[1741633485220,228.263,116.15,116.14,136.32052121]
[1741633485598,228.263,116.15,116.14,144.93072121]
[1741633485792,228.263,116.15,116.13,6.5682]
[1741633485985,228.263,116.15,116.14,76.32052121]
[1741633486189,228.263,116.15,116.14,136.46268278]
[1741633486385,228.14,116.2,116.15,65.36252314]
[1741633486605,228.14,116.25,116.19,76.32052121]
[1741633488032,228.14,116.25,116.23,76.32052121]
[1741633488218,228.14,116.25,116.15,63.0782]
[1741633488384,228.14,116.25,116.15,71.6876]
[1741633488591,228.14,116.25,116.16,0.28432314]
[1741633489212,228.14,116.25,116.21,76.32052121]
[1741633489415,228.14,116.25,116.24,76.32052121]
[1741633489805,228.14,116.25,116.24,84.92332121]
[1741633489999,228.14,116.25,116.24,76.32052121]
[1741633490317,228.14,116.25,116.19,40.16484886]
[1741633490318,228.14,116.25,116.23,76.32052121]
[1741633490532,228.14,116.25,116.21,76.32052121]
[1741633490717,228.14,116.25,116.23,76.32052121]
[1741633491393,228.14,116.25,116.17,30.1281]
[1741633491710,228.14,116.25,116.23,76.32052121]
[1741633491892,228.14,116.25,116.24,76.32052121]
[1741633492594,228.14,116.25,116.24,136.32052121]
[1741633492910,1.0,116.3,116.25,0.28432314]
[1741633493101,1.0,116.3,116.29,76.32052121]
[1741633493423,1.0,116.3,116.29,136.32052121]
[1741633493603,1.0,116.3,116.29,144.91962121]
[1741633493798,1.0,116.3,116.29,76.32052121]
[1741633494108,1.0,116.3,116.29,136.32052121]
[1741633494312,1.0,116.3,116.29,76.32052121]
[1741633494516,1.0,116.3,116.29,136.32052121]
[1741633494724,1.0,116.3,116.27,76.32052121]
[1741633494907,1.0,116.3,116.28,76.32052121]
[1741633495107,1.0,116.3,116.29,76.32052121]
[1741633495626,1.0,116.3,116.27,76.32052121]
[1741633495922,1.0,116.3,116.26,76.32052121]
[1741633496131,1.0,116.3,116.27,76.32052121]
[1741633496432,21.0,116.3,116.27,76.32052121]
[1741633496609,1.0,116.3,116.29,76.32052121]
[1741633497030,1.0,116.3,116.24,74.6433]
[1741633497536,1.0,116.3,116.29,76.32052121]
[1741633497709,1.0,116.3,116.29,144.91962121]
[1741633498106,0.063,116.31,116.3,0.28432314]
[1741633498407,227.94,116.33,116.31,0.28432314]
[1741633498712,227.94,116.33,116.32,76.60484435]
[1741633499024,227.88,116.4,116.33,0.14216157]
[1741633499231,227.88,116.4,116.33,60.0]
[1741633499409,227.88,116.4,116.36,76.32052121]
[1741633499819,227.88,116.4,116.36,136.32052121]
[1741633500027,227.88,116.4,116.36,60.0]
[1741633500333,76.38352121,116.37,116.28,218.22052121]
[1741633500511,0.063,116.37,116.29,0.28432314]
[1741633500716,20.0,116.35,116.33,76.32052121]
[1741633501022,20.0,116.33,116.27,60.0]
[1741633501216,20.0,116.33,116.3,76.32052121]
[1741633501403,20.0,116.32,116.29,76.32052121]
[1741633501603,20.0,116.32,116.24,14.6432]
[1741633501604,20.0,116.27,116.24,60.0]
[1741633501829,76.32052121,116.28,116.23,76.32052121]
[1741633502040,227.82,116.31,116.27,76.32052121]
[1741633502332,0.063,116.37,116.28,0.28432314]
[1741633502538,0.063,116.37,116.3,0.28432314]
[1741633502831,0.063,116.37,116.36,76.32052121]
[1741633503831,0.063,116.37,116.36,85.19884435]
[1741633504036,0.063,116.42,116.37,62.0]
[1741633504207,0.063,116.42,116.41,76.32052121]
[1741633504409,0.063,116.42,116.41,136.32052121]
[1741633504626,0.063,116.42,116.41,60.0]
[1741633504837,0.063,116.42,116.41,136.60484435]
[1741633505014,75.0,116.45,116.42,0.28432314]
[1741633505210,227.76,116.47,116.45,0.28432314]
[1741633505435,21.87329671,116.49,116.46,154.64104242]
[1741633505732,231.43,116.53,116.49,0.28432314]
[1741633505938,231.43,116.53,116.52,152.64104242]
[1741633506243,3.67,116.53,116.52,212.92536556]
[1741633506419,227.79,116.6,116.53,0.28432314]
[1741633506623,227.79,116.6,116.59,76.32052121]
[1741633507024,227.79,116.6,116.53,60.0]
[1741633507229,227.79,116.6,116.52,76.32052121]
[1741633507230,96.32052121,116.57,116.52,76.32052121]
[1741633507437,20.0,116.55,116.47,0.28432314]
[1741633507619,1.60320265,116.59,116.53,76.32052121]
[1741633507823,1.60320265,116.59,116.47,60.0]
[1741633507824,1.60320265,116.59,116.48,0.28432314]
[1741633508123,227.79,116.6,116.58,76.32052121]
[1741633508321,227.79,116.6,116.53,0.14216157]
[1741633508628,227.79,116.6,116.59,76.32052121]
[1741633509426,0.03,116.61,116.6,0.14216157]
[1741633509631,0.03,116.65,116.64,0.14216157]
[1741633509909,0.03,116.65,116.61,60.0]
[1741633510110,0.03,116.65,116.58,76.32052121]
[1741633510418,20.0,116.64,116.54,8.5801]
[1741633510622,18.64964886,116.63,116.58,76.32052121]
[1741633510824,20.0,116.64,116.6,76.32052121]
[1741633511034,20.0,116.64,116.59,76.32052121]
[1741633511336,1.60320265,116.64,116.53,0.28432314]
[1741633511521,0.03,116.65,116.53,60.28432314]
[1741633511703,21.60320265,116.64,116.57,76.32052121]
[1741633511905,76.32052121,116.58,116.48,60.0]
[1741633512105,227.46,116.57,116.53,76.32052121]
[1741633512335,227.46,116.57,116.56,76.32052121]
[1741633512725,227.46,116.57,116.56,76.46268278]
[1741633512918,227.46,116.57,116.56,76.32052121]
[1741633513105,227.46,116.57,116.49,0.28432314]
[1741633513311,227.4,116.63,116.56,76.32052121]
[1741633513547,227.4,116.63,116.62,76.32052121]
[1741633514115,0.03,116.65,116.63,0.14216157]
[1741633514421,0.03,116.69,116.63,0.14216157]
[1741633514632,0.03,116.69,116.68,76.46268278]
[1741633514930,227.4,116.76,116.69,0.28432314]
[1741633515125,227.4,116.76,116.72,0.28432314]
[1741633515321,2.4443,116.83,116.75,152.64104242]
[1741633515624,227.4,116.81,116.79,76.32052121]
[1741633515838,227.4,116.81,116.78,76.32052121]
[1741633516023,227.28,116.81,116.73,0.14216157]
[1741633516343,227.28,116.81,116.8,76.32052121]
[1741633516644,227.28,116.81,116.71,0.28432314]
[1741633516810,96.57337272,116.8,116.75,76.32052121]
[1741633517012,227.28,116.81,116.79,76.32052121]
[1741633517213,227.28,116.81,116.8,76.32052121]
[1741633517412,227.28,116.81,116.73,0.14216157]
[1741633517632,227.28,116.81,116.8,76.32052121]
[1741633517841,227.28,116.81,116.76,84.88502121]
[1741633517842,76.32052121,116.87,116.77,0.28432314]
[1741633518050,227.28,116.86,116.82,76.32052121]
[1741633518227,227.28,116.86,116.84,76.32052121]
[1741633518439,227.28,116.86,116.85,76.32052121]
[1741633518949,227.28,116.86,116.78,0.28432314]
[1741633519129,227.28,116.86,116.85,76.32052121]
[1741633519448,227.28,116.86,116.8,0.14216157]
[1741633519744,227.28,116.86,116.85,76.32052121]
[1741633520425,227.28,116.86,116.84,76.32052121]
[1741633520622,227.28,116.86,116.85,76.32052121]
[1741633521420,227.28,116.86,116.83,76.32052121]
[1741633521624,227.28,116.86,116.77,0.14216157]
[1741633521935,227.28,116.86,116.82,76.32052121]
[1741633522243,227.28,116.86,116.8,76.32052121]
[1741633522460,227.28,116.86,116.83,76.32052121]
[1741633522618,227.28,116.86,116.82,76.32052121]
[1741633522820,227.28,116.86,116.81,76.32052121]
[1741633523115,18.64964886,116.84,116.8,76.32052121]
[1741633523320,227.28,116.86,116.83,76.32052121]
[1741633523547,227.28,116.86,116.8,60.0]
[1741633523844,1.60320265,116.85,116.81,76.32052121]
[1741633524025,96.57337272,116.85,116.76,76.32052121]
[1741633524225,20.0,116.82,116.73,68.5667]
[1741633524431,20.0,116.83,116.73,60.0]
[1741633524654,20.0,116.81,116.73,60.0]
[1741633524839,20.0,116.81,116.72,60.14216157]
[1741633525039,20.0,116.81,116.73,0.28432314]
[1741633525240,20.0,116.82,116.79,76.32052121]
[1741633525437,18.64964886,116.81,116.77,76.32052121]
[1741633525645,20.0,116.82,116.77,76.32052121]
[1741633525931,228.52320265,116.81,116.71,60.0]
[1741633526146,226.92,116.81,116.72,2.28432314]
[1741633526459,226.92,116.81,116.72,60.14216157]
[1741633527053,226.92,116.81,116.78,76.32052121]
[1741633527446,226.92,116.81,116.77,76.32052121]
[1741633527654,303.24052121,116.81,116.72,60.0]
[1741633527950,226.92,116.81,116.79,76.32052121]
[1741633528161,226.92,116.81,116.77,76.32052121]
[1741633528338,226.92,116.81,116.76,76.32052121]
[1741633528534,226.92,116.81,116.77,76.32052121]
[1741633528728,226.92,116.81,116.78,76.32052121]
[1741633528933,226.92,116.81,116.8,76.32052121]
[1741633529147,226.92,116.81,116.8,212.78320399]
[1741633529356,226.88,116.87,116.81,0.14216157]
[1741633529566,226.88,116.87,116.84,76.32052121]
[1741633529727,226.88,116.87,116.76,144.88502121]
[1741633529728,76.32052121,116.86,116.76,144.88502121]
[1741633529931,1.60320265,116.86,116.81,76.32052121]
[1741633530145,1.60320265,116.86,116.77,0.14216157]
[1741633530146,226.88,116.87,116.83,76.32052121]
[1741633530342,226.88,116.87,116.86,76.32052121]
[1741633531055,226.88,116.87,116.82,136.32052121]
[1741633531260,226.88,116.87,116.86,76.32052121]
[1741633531561,226.88,116.87,116.86,212.78320399]
[1741633531769,226.88,116.87,116.86,136.32052121]
[1741633531972,226.88,116.87,116.82,60.0]
[1741633532169,226.88,116.87,116.81,76.32052121]
[1741633532170,1.60320265,116.86,116.81,76.32052121]
[1741633532353,18.64964886,116.85,116.76,76.32052121]
[1741633532551,76.32052121,116.83,116.78,76.32052121]
[1741633532757,1.60320265,116.84,116.79,76.32052121]
[1741633533149,233.0209,116.87,116.83,76.32052121]
[1741633533345,226.88,116.87,116.77,61.4259809]
[1741633533553,226.88,116.87,116.84,76.32052121]
[1741633533744,226.88,116.87,116.83,76.32052121]
[1741633533976,226.82,116.86,116.77,8.84812314]
[1741633534152,226.82,116.86,116.83,76.32052121]
[1741633534562,226.82,116.86,116.82,76.32052121]
[1741633534761,226.82,116.86,116.83,76.32052121]
[1741633535169,76.32052121,116.88,116.77,68.84812314]
[1741633535371,245.46964886,116.87,116.77,68.84812314]
[1741633535608,226.82,116.87,116.82,76.32052121]
[1741633535773,226.82,116.87,116.86,76.32052121]
[1741633536273,226.82,116.87,116.86,76.46268278]
[1741633536855,1.0,116.9,116.86,212.92536556]
[1741633537054,1.0,116.9,116.89,76.46268278]
[1741633537477,1.0,116.9,116.89,76.32052121]
[1741633537677,227.8,116.9,116.87,76.32052121]
[1741633537875,227.8,116.9,116.85,76.32052121]
[1741633537876,18.64964886,116.89,116.85,76.32052121]
[1741633538111,77.92372386,116.88,116.82,76.32052121]
[1741633538265,2.8401,116.89,116.79,2.14216157]
[1741633538450,227.8,116.9,116.88,76.32052121]
[1741633538654,227.8,116.9,116.83,0.28432314]
[1741633538851,227.8,116.9,116.89,76.46268278]
[1741633539053,227.8,116.9,116.89,76.60484435]
[1741633539274,227.8,116.9,116.89,136.60484435]
[1741633539483,0.03,116.92,116.9,0.14216157]
[1741633539679,0.03,116.92,116.91,76.60484435]
[1741633539988,0.03,116.92,116.91,145.15834435]
[1741633540360,0.03,116.92,116.91,136.46268278]
[1741633540682,0.03,116.92,116.91,76.32052121]
[1741633541268,0.03,116.92,116.89,76.32052121]
[1741633541666,20.0,116.91,116.88,76.32052121]
[1741633541864,0.03,116.92,116.9,76.32052121]
[1741633542078,0.03,116.92,116.85,0.28432314]
[1741633542079,0.03,116.92,116.91,76.32052121]
[1741633542287,20.0,116.89,116.8,60.0]
[1741633542697,18.64964886,116.88,116.78,60.0]
[1741633542874,18.64964886,116.88,116.82,76.32052121]
[1741633542875,1.60320265,116.87,116.82,76.32052121]
[1741633543082,226.68,116.86,116.85,76.32052121]
[1741633543887,0.03,116.92,116.85,85.16274435]
[1741633544072,0.03,116.92,116.9,76.32052121]
[1741633544273,0.03,116.92,116.91,76.32052121]
[1741633545474,0.03,116.92,116.9,76.32052121]
[1741633545685,0.03,116.92,116.86,0.28432314]
[1741633545890,0.03,116.92,116.89,76.32052121]
[1741633546088,18.67964886,116.92,116.88,76.32052121]
[1741633546280,20.0,116.86,116.81,0.063]
[1741633546598,38.64964886,116.86,116.81,0.063]
[1741633546905,76.32052121,116.87,116.81,0.063]
[1741633547105,20.0,116.87,116.83,76.32052121]
[1741633547269,20.0,116.85,116.81,76.38352121]
[1741633547475,226.64,116.84,116.81,0.063]
[1741633547898,20.0,116.82,116.81,0.063]
[1741633548281,18.64964886,116.81,116.76,76.32052121]
[1741633548473,18.64964886,116.82,116.77,76.32052121]
[1741633548675,1.60320265,116.83,116.79,76.32052121]
[1741633548918,226.64,116.84,116.82,76.32052121]
[1741633549197,18.64964886,116.83,116.76,60.0]
[1741633549381,18.64964886,116.81,116.76,76.32052121]
[1741633549587,76.32052121,116.79,116.75,0.063]
[1741633549794,77.92372386,116.81,116.75,76.38352121]
[1741633549998,20.0,116.77,116.75,0.063]
[1741633550180,77.92372386,116.79,116.75,0.063]
[1741633550499,20.0,116.76,116.75,0.063]
[1741633550714,38.64964886,116.76,116.75,0.063]
[1741633551194,20.0,116.74,116.71,76.32052121]
[1741633551414,20.0,116.72,116.65,0.28432314]
[1741633551586,20.0,116.72,116.69,76.32052121]
[1741633552101,20.0,116.7,116.68,76.32052121]
[1741633552399,226.68,116.73,116.69,76.32052121]
[1741633552578,226.68,116.73,116.72,76.32052121]
[1741633553181,226.68,116.73,116.71,76.32052121]
[1741633553373,20.0,116.7,116.69,76.32052121]
[1741633553579,20.0,116.68,116.61,0.14216157]
[1741633553793,20.0,116.63,116.56,8.5792]
[1741633554004,20.0,116.63,116.54,60.0]
[1741633554005,246.76,116.62,116.59,76.32052121]
[1741633554182,18.64964886,116.61,116.58,76.32052121]
[1741633554497,246.76,116.62,116.6,76.32052121]
[1741633554699,246.76,116.62,116.59,76.32052121]
[1741633554897,246.76,116.62,116.58,76.32052121]
[1741633555381,20.0,116.58,116.57,76.32052121]
[1741633555572,20.0,116.58,116.52,76.32052121]
[1741633555573,246.86,116.58,116.52,76.32052121]
[1741633555998,18.64964886,116.57,116.53,76.32052121]
[1741633556195,20.0,116.55,116.54,76.32052121]
[1741633556398,226.86,116.58,116.54,76.32052121]
[1741633556774,20.0,116.56,116.55,76.32052121]
[1741633557077,20.0,116.54,116.47,8.5858]
[1741633557271,18.64964886,116.53,116.49,76.32052121]
[1741633557476,18.64964886,116.53,116.44,8.588]
[1741633557681,20.0,116.5,116.47,76.32052121]
[1741633557884,226.98,116.49,116.48,76.32052121]
[1741633558884,226.98,116.49,116.48,76.60484435]
[1741633559593,226.98,116.55,116.49,18.933972]
[1741633559791,226.98,116.55,116.49,78.933972]
[1741633559986,226.98,116.55,116.54,76.60484435]
[1741633560291,226.98,116.55,116.54,76.32052121]
[1741633560704,226.98,116.55,116.54,76.60484435]
[1741633560885,226.98,116.55,116.53,76.32052121]
[1741633561089,226.98,116.55,116.54,76.32052121]
[1741633561287,226.98,116.55,116.54,76.60484435]
[1741633561504,226.98,116.55,116.54,76.32052121]
[1741633561684,226.98,116.55,116.54,76.60484435]
[1741633561883,6.4134,116.65,116.56,8.5792]
[1741633561884,227.08,116.62,116.56,8.5792]
[1741633562102,227.08,116.62,116.61,76.60484435]
[1741633562612,6.6456,116.71,116.62,0.28432314]
[1741633562613,20.0,116.68,116.62,0.28432314]
[1741633562796,6.6456,116.71,116.67,76.32052121]
[1741633563119,6.6456,116.71,116.62,0.28432314]
[1741633563120,2.9733,116.72,116.64,76.32052121]
[1741633563304,1.60320265,116.76,116.71,76.32052121]
[1741633563502,1.60320265,116.76,116.65,0.28432314]
[1741633563503,20.0,116.69,116.66,76.32052121]
[1741633563710,83.40320265,116.71,116.6,18.933972]
[1741633563894,83.40320265,116.76,116.7,76.32052121]
[1741633564082,83.40320265,116.76,116.68,40.77768601]
[1741633564083,81.8,116.76,116.68,40.77768601]
[1741633564285,7.75340265,116.77,116.73,76.32052121]
[1741633564484,84.07392386,116.77,116.72,76.32052121]
[1741633564713,94.97017007,116.76,116.71,76.32052121]
[1741633564885,245.70964886,116.75,116.72,13.11767827]
[1741633565084,227.06,116.77,116.72,13.11767827]
[1741633565294,1.60320265,116.76,116.72,13.11767827]
[1741633565485,38.64964886,116.73,116.68,129.22081874]
[1741633565813,227.06,116.72,116.69,0.28432314]
[1741633566104,18.64964886,116.73,116.68,116.10314047]
[1741633566307,227.06,116.72,116.68,116.10314047]
[1741633566510,227.06,116.71,116.7,76.32052121]
[1741633566820,227.06,116.73,116.71,0.28432314]
[1741633566996,227.04,116.75,116.73,0.28432314]
[1741633567379,227.04,116.75,116.73,137.78432314]
[1741633567618,227.04,116.75,116.74,76.60484435]
[1741633567782,6.053,116.84,116.75,0.28432314]
[1741633567783,227.04,116.82,116.75,0.28432314]
[1741633567978,227.04,116.82,116.81,76.32052121]
[1741633568179,0.03,116.84,116.81,214.10484435]
[1741633568395,0.03,116.84,116.82,0.28432314]
[1741633568810,0.03,116.84,116.83,76.32052121]
[1741633568984,0.03,116.84,116.83,76.60484435]
[1741633569410,76.32052121,116.91,116.84,0.28432314]
[1741633569613,0.17178519,116.89,116.88,76.32052121]
[1741633570037,0.17178519,116.89,116.88,85.16054435]
[1741633570338,0.17178519,116.89,116.88,298.98106556]
[1741633570559,0.17178519,116.89,116.88,161.48106556]
[1741633570716,0.17178519,116.89,116.88,152.92536556]
[1741633570918,0.18133727,116.9,116.89,0.28432314]
[1741633571119,0.17134017,116.91,116.9,18.933972]
[1741633571312,0.17134017,116.91,116.9,234.03675513]
[1741633571538,0.17758915,116.93,116.92,40.933972]